fUSD/lending_fUSD_20250504
["ID","MTS","AMOUNT","RATE_DAILY","PERIOD"]
[359865567,1746382240495,-434.15677188,0.00019856,2]
[359865568,1746382240597,-196.40610609,0.00019856,2]
[359865569,1746382240608,-5821.11,0.00019856,2]
[359865570,1746382240618,-878.0,0.00019856,2]
[359865571,1746382240628,-1140.0,0.00019856,2]
[359865572,1746382240639,-12500.0,0.00019856,2]
[359865573,1746382240650,-228.04588836,0.0001986,2]
[359865574,1746382240662,-12500.0,0.00019865,2]
[359865575,1746382240673,-162.55070289,0.00019866,2]
[359865576,1746382240683,-500.0,0.00019873,2]
[359865577,1746382240693,-500.0,0.00019873,2]
[359865578,1746382240704,-310.83036088,0.00019873,2]
[359865579,1746382240715,-246.7956604,0.00019873,2]
[359865580,1746382240725,-500.0,0.00019873,2]
[359865581,1746382240737,-53189.75340233,0.00019873,2]
[359865582,1746382241100,-18471.5336249,0.00019873,2]
[359865583,1746382241112,-1806.95223256,0.00019873,2]
[359865584,1746382241129,-478.35166561,0.00019873,2]
[359865591,1746382243470,-616.64251983,0.00019873,2]
[359865592,1746382243523,-973.6,0.00019873,2]
[359865594,1746382246438,-742.19,0.00019873,2]
[359865595,1746382246449,-872.1926966,0.00019873,2]
[359865596,1746382246461,-637.31833271,0.00019873,2]
[359865597,1746382246491,-8781.06209315,0.00019873,2]
[359865598,1746382246597,-641.10851986,0.00019873,2]
[359865599,1746382246702,-599.7558185,0.00019873,2]
[359865600,1746382246756,-1916.3918842,0.00019873,2]
[359865605,1746382428446,995.18,0.00016983,2]
[359865606,1746382428847,995.18,0.00019247,2]
[359865607,1746382504368,399.34137172,0.0003,30]
[359865608,1746382518221,152.0,0.0003,30]
[359865609,1746382662013,153.32,0.000298,31]
[359865610,1746382662067,153.32,0.000298,31]
[359865611,1746382662143,153.32,0.000298,31]
[359865612,1746382662188,153.32,0.000298,31]
[359865613,1746382662252,153.32,0.000298,31]
[359865614,1746382662313,153.32,0.000298,31]
[359865615,1746382662375,153.32,0.000298,31]
[359865616,1746382723814,1000.0,0.00018905,2]
[359865617,1746382793915,500.0,0.00027945,30]
[359865618,1746382794173,500.0,0.00029315,35]
[359865619,1746382814241,500.0,0.00027945,30]
[359865620,1746382814481,500.0,0.00029315,30]
[359865621,1746383018894,1000.0,0.0003,30]
[359865644,1746383263772,153.4,0.000298,31]
[359865645,1746383263825,153.4,0.000298,31]
[359865646,1746383263877,153.4,0.000298,31]
[359865647,1746383263935,153.4,0.000298,31]
[359865648,1746383264023,153.4,0.000298,31]
[359865649,1746383264078,153.4,0.000298,31]
[359865650,1746383264139,153.4,0.000298,31]
[359865651,1746383317760,10000.0,0.0003,30]
[359865663,1746383354251,10070.99837615,0.00019501,2]
[359865664,1746383358696,528.47921867,0.00027945,30]
[359865672,1746383378361,500.0,0.00027945,30]
[359865673,1746383378601,500.0,0.00029315,30]
[359865674,1746383425039,895.66,0.00016968,2]
[359865675,1746383425322,895.66,0.00019231,2]
[359865680,1746383431481,-574.6,0.000196,2]
[359865681,1746383431536,-408.29759151,0.000196,2]
[359865682,1746383431549,-17.10240849,0.000196,2]
[359865683,1746383431559,-240.45893495,0.00019668,2]
[359865684,1746383431644,-9.54106505,0.00019668,2]
[359865685,1746383431653,-3548.15343232,0.0001975,2]
[359865686,1746383431662,-450.3073,0.00019773,2]
[359865687,1746383431671,-500.0,0.00019782,2]
[359865688,1746383431680,-1200.0,0.00019797,2]
[359865689,1746383431690,-300.0,0.00019798,2]
[359865690,1746383431699,-4305.7459,0.00019799,2]
[359865691,1746383431709,-307.4996106,0.00019799,2]
[359865692,1746383431718,-500.0,0.00019808,2]
[359865693,1746383431727,-156.74532066,0.00019815,2]
[359865694,1746383431736,-156.74532063,0.00019843,2]
[359865695,1746383431746,-207.4,0.00019862,2]
[359865696,1746383431755,-156.74532063,0.00019872,2]
[359865697,1746383431763,-500.0,0.00019873,2]
[359865698,1746383431772,-378.25673011,0.00019873,2]
[359865752,1746383437477,-121.74326989,0.00019873,2]
[359865753,1746383437488,-500.0,0.00019873,2]
[359865754,1746383437499,-22.63073602,0.00019873,2]
[359865755,1746383437511,-152.21108404,0.00019873,2]
[359865756,1746383437520,-545.44826821,0.00019874,2]
[359865757,1746383437644,-999.42965019,0.00019874,2]
[359865758,1746383437696,-3057.6303799,0.00019874,2]
[359865759,1746383437707,-1031.75586833,0.00019874,2]
[359865760,1746383437751,-591.41559477,0.00019874,2]
[359865797,1746383439566,-6274.3202386,0.00019874,2]
[359865798,1746383439576,-584.92949595,0.00019881,2]
[359865799,1746383439585,-450.0,0.00019881,2]
[359865800,1746383439595,-5915.77876104,0.00019882,2]
[359865801,1746383439780,-6584.22123896,0.00019882,2]
[359865802,1746383439790,-2039.6437,0.00019886,2]
[359865803,1746383439801,-12500.0,0.00019891,2]
[359865804,1746383439810,-262.2161907,0.00019897,2]
[359865805,1746383439820,-450.0,0.00019898,2]
[359865806,1746383439829,-450.0,0.00019898,2]
[359865807,1746383439838,-450.0,0.00019898,2]
[359865808,1746383439847,-250.0,0.00019898,2]
[359865809,1746383439857,-479.02443309,0.00019898,2]
[359865810,1746383439867,-450.0,0.00019898,2]
[359865811,1746383439876,-340.7139168,0.00019898,2]
[359865812,1746383439885,-450.0,0.00019898,2]
[359865813,1746383439898,-450.0,0.00019898,2]
[359865814,1746383439907,-450.0,0.00019898,2]
[359865815,1746383439917,-450.0,0.00019898,2]
[359865816,1746383439926,-524.84654063,0.00019898,2]
[359865817,1746383439936,-450.0,0.00019898,2]
[359865818,1746383439945,-450.0,0.00019898,2]
[359865819,1746383439955,-450.0,0.00019898,2]
[359865820,1746383439964,-450.0,0.00019898,2]
[359865821,1746383439973,-365.76517533,0.00019898,2]
[359865822,1746383439983,-450.0,0.00019898,2]
[359865823,1746383439992,-450.0,0.00019898,2]
[359865824,1746383440001,-450.0,0.00019898,2]
[359865825,1746383440010,-450.0,0.00019898,2]
[359865826,1746383440020,-450.0,0.00019898,2]
[359865827,1746383440029,-450.0,0.00019898,2]
[359865828,1746383440038,-450.0,0.00019898,2]
[359865829,1746383440048,-450.0,0.00019898,2]
[359865830,1746383440057,-481.38,0.00019898,2]
[359865831,1746383440067,-450.0,0.00019898,2]
[359865832,1746383440076,-330.77538995,0.00019898,2]
[359865833,1746383440086,-450.0,0.00019898,2]
[359865834,1746383440095,-450.0,0.00019898,2]
[359865835,1746383440104,-305.46032057,0.00019898,2]
[359865836,1746383440114,-450.0,0.00019898,2]
[359865837,1746383440124,-450.0,0.00019898,2]
[359865838,1746383440133,-450.0,0.00019898,2]
[359865839,1746383440142,-450.0,0.00019898,2]
[359865840,1746383440152,-450.0,0.00019898,2]
[359865841,1746383440162,-335.35234224,0.00019898,2]
[359865842,1746383440171,-450.0,0.00019898,2]
[359865843,1746383440181,-533.35,0.00019898,2]
[359865844,1746383440192,-450.0,0.00019898,2]
[359865845,1746383440201,-450.0,0.00019898,2]
[359865846,1746383440211,-524.52,0.00019898,2]
[359865848,1746383440220,-450.0,0.00019898,2]
[359865850,1746383440230,-450.0,0.00019898,2]
[359865851,1746383440239,-450.0,0.00019898,2]
[359865852,1746383440248,-450.0,0.00019898,2]
[359865853,1746383440258,-450.0,0.00019898,2]
[359865854,1746383440267,-450.0,0.00019898,2]
[359865855,1746383440276,-450.0,0.00019898,2]
[359865856,1746383440286,-450.0,0.00019898,2]
[359865857,1746383440296,-453.08368277,0.00019898,2]
[359865858,1746383440306,-450.0,0.00019898,2]
[359865859,1746383440315,-450.0,0.00019898,2]
[359865860,1746383440325,-450.0,0.00019898,2]
[359865861,1746383440334,-450.0,0.00019898,2]
[359865862,1746383440344,-450.0,0.00019898,2]
[359865863,1746383440353,-450.0,0.00019898,2]
[359865864,1746383440363,-450.0,0.00019898,2]
[359865865,1746383440373,-453.81098753,0.00019898,2]
[359865866,1746383440383,-450.0,0.00019898,2]
[359865867,1746383440394,-450.0,0.00019898,2]
[359865868,1746383440404,-450.0,0.00019898,2]
[359865869,1746383440413,-450.0,0.00019898,2]
[359865870,1746383440423,-450.0,0.00019898,2]
[359865871,1746383440432,-450.0,0.00019898,2]
[359865872,1746383440442,-450.0,0.00019898,2]
[359865873,1746383440453,-450.0,0.00019898,2]
[359865874,1746383440465,-450.0,0.00019898,2]
[359865875,1746383440474,-530.6,0.00019898,2]
[359865876,1746383440483,-450.0,0.00019898,2]
[359865877,1746383440494,-450.0,0.00019898,2]
[359865878,1746383440503,-461.83384254,0.00019898,2]
[359865879,1746383440512,-500.0,0.00019898,2]
[359865880,1746383440523,-154.87237071,0.00019898,2]
[359865881,1746383440533,-262.21619069,0.00019898,2]
[359865882,1746383440543,-322.46897921,0.00019899,2]
[359865883,1746383440553,-450.0,0.00019899,2]
[359865884,1746383440564,-450.0,0.00019899,2]
[359865885,1746383440573,-250.0,0.00019899,2]
[359865886,1746383440584,-450.0,0.00019899,2]
[359865887,1746383440594,-211.18328943,0.00019899,2]
[359865888,1746383440603,-450.0,0.00019899,2]
[359865889,1746383440612,-450.0,0.00019899,2]
[359865890,1746383440622,-450.0,0.00019899,2]
[359865891,1746383440632,-357.05111007,0.00019899,2]
[359865892,1746383440642,-450.0,0.00019899,2]
[359865893,1746383440652,-450.0,0.00019899,2]
[359865894,1746383440662,-502.73,0.00019899,2]
[359865895,1746383440673,-211.25339233,0.00019899,2]
[359865896,1746383440683,-151.0,0.00019899,2]
[359865897,1746383440695,-450.0,0.00019899,2]
[359865898,1746383440704,-256.67,0.00019899,2]
[359865899,1746383440713,-151.0,0.00019899,2]
[359865900,1746383440722,-470.0,0.00019899,2]
[359865901,1746383440731,-515.36446271,0.00019899,2]
[359865902,1746383440741,-450.0,0.00019899,2]
[359865903,1746383440750,-450.0,0.00019899,2]
[359865904,1746383440760,-370.63,0.00019899,2]
[359865905,1746383440769,-450.0,0.00019899,2]
[359865906,1746383440778,-450.0,0.00019899,2]
[359865907,1746383440787,-450.0,0.00019899,2]
[359865908,1746383440796,-450.0,0.00019899,2]
[359865909,1746383440806,-450.0,0.00019899,2]
[359865910,1746383440816,-450.0,0.00019899,2]
[359865911,1746383440825,-450.0,0.00019899,2]
[359865912,1746383440834,-450.0,0.00019899,2]
[359865913,1746383440843,-450.0,0.00019899,2]
[359865914,1746383440852,-450.0,0.00019899,2]
[359865915,1746383440861,-323.62,0.00019899,2]
[359865916,1746383440871,-450.0,0.00019899,2]
[359865917,1746383440879,-527.94,0.00019899,2]
[359865918,1746383440888,-450.0,0.00019899,2]
[359865919,1746383440898,-450.0,0.00019899,2]
[359865920,1746383440907,-450.0,0.00019899,2]
[359865921,1746383440916,-450.0,0.00019899,2]
[359865922,1746383440927,-450.0,0.00019899,2]
[359865923,1746383440936,-450.0,0.00019899,2]
[359865924,1746383440945,-169.43,0.00019899,2]
[359865925,1746383440955,-582.49,0.00019899,2]
[359865926,1746383440964,-450.0,0.00019899,2]
[359865927,1746383440973,-450.0,0.00019899,2]
[359865928,1746383440983,-450.0,0.00019899,2]
[359865929,1746383440992,-481.15,0.00019899,2]
[359865930,1746383441001,-450.0,0.00019899,2]
[359865931,1746383441010,-450.0,0.00019899,2]
[359865932,1746383441019,-450.0,0.00019899,2]
[359865933,1746383441029,-450.0,0.00019899,2]
[359865934,1746383441038,-450.0,0.00019899,2]
[359865935,1746383441048,-450.0,0.00019899,2]
[359865936,1746383441058,-450.0,0.00019899,2]
[359865937,1746383441067,-498.67,0.00019899,2]
[359865938,1746383441077,-450.0,0.00019899,2]
[359865939,1746383441087,-775.71,0.00019899,2]
[359865940,1746383441096,-775.71,0.00019899,2]
[359865941,1746383441105,-450.0,0.00019899,2]
[359865942,1746383441116,-450.0,0.00019899,2]
[359865943,1746383441125,-450.0,0.00019899,2]
[359865944,1746383441135,-462.52,0.00019899,2]
[359865945,1746383441144,-5316.82,0.00019899,2]
[359865946,1746383441155,-5316.82,0.00019899,2]
[359865947,1746383441165,-450.0,0.00019899,2]
[359865948,1746383441175,-450.0,0.00019899,2]
[359865949,1746383441184,-450.0,0.00019899,2]
[359865950,1746383441199,-450.0,0.00019899,2]
[359865951,1746383441210,-450.0,0.00019899,2]
[359865952,1746383441219,-589.36,0.00019899,2]
[359865953,1746383441229,-450.0,0.00019899,2]
[359865954,1746383441239,-450.0,0.00019899,2]
[359865955,1746383441248,-375.18,0.00019899,2]
[359865956,1746383441258,-450.0,0.00019899,2]
[359865957,1746383441269,-219.37,0.00019899,2]
[359865958,1746383441278,-262.21619069,0.00019899,2]
[359865959,1746383441288,-450.0,0.00019899,2]
[359865960,1746383441298,-497.55,0.00019899,2]
[359865961,1746383441308,-450.0,0.00019899,2]
[359865962,1746383441318,-450.0,0.00019899,2]
[359865963,1746383441329,-450.0,0.00019899,2]
[359865964,1746383441340,-450.0,0.00019899,2]
[359865965,1746383441349,-450.0,0.00019899,2]
[359865966,1746383441359,-450.0,0.00019899,2]
[359865967,1746383441369,-510.87,0.00019899,2]
[359865968,1746383441378,-450.0,0.00019899,2]
[359865969,1746383441387,-450.0,0.00019899,2]
[359865970,1746383441396,-567.96,0.00019899,2]
[359865971,1746383441406,-450.0,0.00019899,2]
[359865972,1746383441415,-450.0,0.00019899,2]
[359865973,1746383441425,-3679.66,0.00019899,2]
[359865974,1746383441434,-3679.66,0.00019899,2]
[359865975,1746383441443,-12500.0,0.000199,2]
[359865976,1746383441452,-1187.71524799,0.000199,3]
[359865977,1746383441462,-11482.77530735,0.000199,2]
[359865978,1746383441472,-12500.0,0.000199,2]
[359865979,1746383441482,-151.0,0.000199,2]
[359865980,1746383441491,-151.0,0.000199,2]
[359865981,1746383441500,-12500.0,0.000199,2]
[359865982,1746383441509,-151.0,0.000199,2]
[359865983,1746383441519,-300.439862,0.000199,2]
[359865984,1746383441528,-151.0,0.000199,2]
[359865985,1746383441538,-151.0,0.000199,2]
[359865986,1746383441547,-7580.97839691,0.000199,2]
[359865987,1746383441556,-151.0,0.000199,2]
[359865988,1746383441566,-156.74532063,0.000199,2]
[359865989,1746383441575,-151.0,0.000199,2]
[359865990,1746383441584,-44.80917289,0.00019902,2]
[359865991,1746383441603,-358.77311339,0.00019902,2]
[359865992,1746383441615,-389.07571372,0.00019902,2]
[359865993,1746383441624,-151.0,0.00019902,2]
[359865994,1746383441634,-29.57773654,0.00019905,2]
[359866007,1746383442549,-450.0,0.00019899,2]
[359866008,1746383442559,-65.811067,0.00019899,2]
[359866009,1746383442570,-384.188933,0.00019899,2]
[359866010,1746383442579,-257.80353439,0.00019905,2]
[359866011,1746383442590,-565.99524606,0.00019905,2]
[359866012,1746383442601,-2257.99506969,0.00019905,2]
[359866013,1746383442610,-173.06460478,0.00019914,2]
[359866014,1746383442620,-450.0,0.00019914,2]
[359866015,1746383442630,-450.0,0.00019914,2]
[359866016,1746383442639,-450.0,0.00019914,2]
[359866017,1746383442648,-450.0,0.00019914,2]
[359866018,1746383442658,-450.0,0.00019914,2]
[359866019,1746383442668,-594.5,0.00019914,2]
[359866020,1746383442677,-175.86611943,0.00019914,2]
[359866021,1746383442689,-274.13388057,0.00019914,2]
[359866022,1746383442699,-450.0,0.00019914,2]
[359866023,1746383442708,-502.62,0.00019914,2]
[359866024,1746383442718,-450.0,0.00019914,2]
[359866025,1746383442728,-450.0,0.00019914,2]
[359866026,1746383442738,-450.0,0.00019914,2]
[359866027,1746383442747,-524.07,0.00019914,2]
[359866028,1746383442757,-167.40267163,0.00019914,2]
[359866030,1746383442775,-282.59732837,0.00019914,2]
[359866031,1746383442785,-165.78,0.00019914,2]
[359866032,1746383442795,-406.95230263,0.00019914,2]
[359866033,1746383442812,-43.04769737,0.00019914,2]
[359866034,1746383442822,-450.0,0.00019914,2]
[359866035,1746383442832,-450.0,0.00019914,2]
[359866036,1746383442842,-450.0,0.00019914,2]
[359866037,1746383442851,-450.0,0.00019914,2]
[359866038,1746383442860,-454.54,0.00019914,2]
[359866039,1746383442871,-450.0,0.00019914,2]
[359866040,1746383442881,-450.0,0.00019914,2]
[359866041,1746383442891,-450.0,0.00019914,2]
[359866042,1746383442901,-450.0,0.00019914,2]
[359866043,1746383442911,-450.0,0.00019914,2]
[359866044,1746383442921,-450.0,0.00019914,2]
[359866045,1746383442931,-450.0,0.00019914,2]
[359866046,1746383442941,-450.0,0.00019914,2]
[359866047,1746383442951,-450.0,0.00019914,2]
[359866048,1746383442960,-450.0,0.00019914,2]
[359866050,1746383442970,-450.0,0.00019914,2]
[359866052,1746383442980,-450.0,0.00019914,2]
[359866054,1746383442989,-450.0,0.00019914,2]
[359866055,1746383442999,-450.0,0.00019914,2]
[359866057,1746383443008,-450.0,0.00019914,2]
[359866059,1746383443018,-450.0,0.00019914,2]
[359866060,1746383443028,-450.0,0.00019914,2]
[359866061,1746383443038,-450.0,0.00019914,2]
[359866062,1746383443047,-450.0,0.00019914,2]
[359866063,1746383443057,-450.0,0.00019914,2]
[359866064,1746383443066,-450.0,0.00019914,2]
[359866065,1746383443076,-2205.276613,0.00019914,2]
[359866066,1746383443085,-450.0,0.00019914,2]
[359866067,1746383443095,-450.0,0.00019914,2]
[359866068,1746383443105,-450.0,0.00019914,2]
[359866069,1746383443114,-450.0,0.00019914,2]
[359866070,1746383443123,-533.81556649,0.00019914,2]
[359866071,1746383443136,-10.70443351,0.00019914,2]
[359866072,1746383443145,-496.82585341,0.00019914,2]
[359866073,1746383443156,-443.29414659,0.00019914,2]
[359866074,1746383443166,-940.12,0.00019914,2]
[359866075,1746383443176,-502.98099755,0.00019914,2]
[359866076,1746383443185,-151.0,0.00019914,2]
[359866077,1746383443200,-450.0,0.00019914,2]
[359866078,1746383443209,-450.0,0.00019914,2]
[359866079,1746383443219,-450.0,0.00019914,2]
[359866080,1746383443228,-1375.6031,0.00019914,2]
[359866081,1746383443239,-450.0,0.00019914,2]
[359866082,1746383443248,-450.0,0.00019914,2]
[359866083,1746383443257,-450.0,0.00019914,2]
[359866084,1746383443267,-450.0,0.00019914,2]
[359866085,1746383443277,-450.0,0.00019914,2]
[359866086,1746383443287,-450.0,0.00019914,2]
[359866087,1746383443297,-450.0,0.00019914,2]
[359866088,1746383443307,-450.0,0.00019914,2]
[359866089,1746383443316,-294.65915009,0.00019914,2]
[359866090,1746383443325,-151.0,0.00019914,2]
[359866091,1746383443335,-450.0,0.00019914,2]
[359866092,1746383443344,-450.0,0.00019914,2]
[359866093,1746383443354,-450.0,0.00019914,2]
[359866094,1746383443363,-450.0,0.00019914,2]
[359866095,1746383443372,-481.62,0.00019914,2]
[359866096,1746383443381,-450.0,0.00019914,2]
[359866097,1746383443390,-450.0,0.00019914,2]
[359866098,1746383443399,-450.0,0.00019914,2]
[359866099,1746383443408,-450.0,0.00019914,2]
[359866100,1746383443417,-565.78050992,0.00019914,2]
[359866101,1746383443426,-450.0,0.00019914,2]
[359866102,1746383443435,-450.0,0.00019914,2]
[359866103,1746383443445,-450.0,0.00019914,2]
[359866104,1746383443454,-450.0,0.00019914,2]
[359866105,1746383443463,-500.0,0.00019914,2]
[359866106,1746383443473,-500.0,0.00019914,2]
[359866107,1746383443482,-64445.42768858,0.00019915,2]
[359866111,1746383445494,-964.46369822,0.00019899,2]
[359866112,1746383445553,-57.30630178,0.00019899,2]
[359866113,1746383445563,-450.0,0.00019914,2]
[359866114,1746383445573,-450.0,0.00019914,2]
[359866115,1746383445583,-3926.89259823,0.00019915,2]
[359866116,1746383445594,-2997.1080979,0.00019915,2]
[359866117,1746383445605,-2615.16281577,0.00019915,2]
[359866118,1746383445616,-15356.39443448,0.00019915,2]
[359866119,1746383445627,-1996.79799988,0.00019915,2]
[359866120,1746383445638,-1553.2086045,0.00019915,2]
[359866121,1746383445649,-480.3050001,0.00019915,2]
[359866122,1746383445661,-8099.43785469,0.00019915,2]
[359866123,1746383445672,-300.21196048,0.00019915,2]
[359866124,1746383445688,-39292.67442012,0.00019915,2]
[359866125,1746383445772,-1021.77,0.00019899,2]
[359866126,1746383445781,-108293.05239673,0.00019915,2]
[359866130,1746383516010,13000.0,0.0003,30]
[359866131,1746383556456,10133.31588794,0.00019501,2]
[359866132,1746383794693,1000.0,0.00018969,2]
[359866133,1746383858145,250.0,0.00017,2]
[359866134,1746383859235,300.0,0.00019,2]
[359866135,1746383989535,500.0,0.00027945,30]
[359866136,1746384228590,150.0,1.37e-06,2]
[359866141,1746384430310,806.09,0.0001704,2]
[359866142,1746384430729,806.09,0.00019304,2]
[359866148,1746384465931,150.0,2.74e-05,2]
[359866290,1746384631769,-207.4,0.00019788,2]
[359866291,1746384631779,-90.7025574,0.00019799,2]
[359866292,1746384631791,-155.2971311,0.00019799,2]
[359866293,1746384631801,-300.0,0.00019799,2]
[359866294,1746384631811,-1200.0,0.00019799,2]
[359866295,1746384631821,-300.0,0.00019799,2]
[359866296,1746384631831,-36233.4817,0.000198,2]
[359866297,1746384631840,-306.61254127,0.00019884,2]
[359866298,1746384631849,-896.7283,0.00019884,2]
[359866299,1746384631860,-306.6125412,0.00019886,2]
[359866300,1746384631870,-162.07668585,0.00019886,2]
[359866301,1746384631879,-306.6125412,0.00019888,2]
[359866302,1746384631889,-162.07668583,0.00019888,2]
[359866303,1746384631899,-306.6125412,0.00019889,2]
[359866304,1746384631909,-162.07668583,0.0001989,2]
[359866305,1746384631919,-306.6125412,0.00019891,2]
[359866306,1746384631928,-162.07668583,0.00019892,2]
[359866307,1746384631938,-306.6125412,0.00019893,2]
[359866308,1746384631948,-162.07668583,0.00019894,2]
[359866309,1746384631958,-306.6125412,0.00019895,2]
[359866310,1746384631969,-162.07668583,0.00019896,2]
[359866311,1746384631979,-306.6125412,0.00019896,2]
[359866312,1746384631989,-162.07668583,0.00019898,2]
[359866314,1746384631999,-306.6125412,0.00019898,2]
[359866316,1746384632009,-225.0,0.00019899,2]
[359866318,1746384632018,-524.43238138,0.00019899,2]
[359866320,1746384632028,-634.126,0.000199,2]
[359866322,1746384632037,-7328.27911681,0.000199,2]
[359866324,1746384632046,-306.6125412,0.000199,2]
[359866325,1746384632055,-162.07668583,0.000199,2]
[359866327,1746384632068,-450.0,0.00019914,2]
[359866330,1746384632078,-450.0,0.00019914,2]
[359866332,1746384632088,-450.0,0.00019914,2]
[359866334,1746384632098,-342.22,0.00019914,2]
[359866336,1746384632108,-450.0,0.00019914,2]
[359866338,1746384632119,-450.0,0.00019914,2]
[359866341,1746384632129,-450.0,0.00019914,2]
[359866342,1746384632138,-498.49,0.00019914,2]
[359866344,1746384632148,-510.66,0.00019914,2]
[359866346,1746384632157,-450.0,0.00019914,2]
[359866349,1746384632174,-450.0,0.00019914,2]
[359866351,1746384632185,-161.41,0.00019914,2]
[359866355,1746384632196,-450.0,0.00019914,2]
[359866356,1746384632206,-450.0,0.00019914,2]
[359866358,1746384632216,-450.0,0.00019914,2]
[359866361,1746384632226,-450.0,0.00019914,2]
[359866362,1746384632236,-450.0,0.00019914,2]
[359866364,1746384632245,-483.08,0.00019914,2]
[359866366,1746384632255,-450.0,0.00019914,2]
[359866368,1746384632265,-450.0,0.00019914,2]
[359866370,1746384632275,-450.0,0.00019914,2]
[359866372,1746384632286,-450.0,0.00019914,2]
[359866374,1746384632296,-151.09,0.00019914,2]
[359866376,1746384632306,-450.0,0.00019914,2]
[359866378,1746384632316,-189.85,0.00019914,2]
[359866380,1746384632326,-450.0,0.00019914,2]
[359866382,1746384632335,-450.0,0.00019914,2]
[359866384,1746384632346,-241.25,0.00019914,2]
[359866387,1746384632356,-450.0,0.00019914,2]
[359866389,1746384632366,-450.0,0.00019914,2]
[359866391,1746384632376,-500.0,0.00019918,2]
[359866393,1746384632385,-1300.0,0.00019948,2]
[359866394,1746384632395,-797.0,0.00019948,2]
[359866397,1746384632405,-550.0,0.00019948,2]
[359866399,1746384632414,-581.0,0.00019948,2]
[359866401,1746384632426,-1451.0,0.00019948,2]
[359866403,1746384632435,-915.0,0.00019948,2]
[359866405,1746384632445,-878.0,0.00019948,2]
[359866407,1746384632455,-1140.0,0.00019948,2]
[359866408,1746384632464,-3883.0,0.00019973,2]
[359866410,1746384632474,-500.0,0.00019973,2]
[359866412,1746384632483,-500.0,0.00019973,2]
[359866414,1746384632493,-500.0,0.00019973,2]
[359866416,1746384632502,-450.0,0.00019984,2]
[359866418,1746384632512,-450.0,0.00019984,2]
[359866420,1746384632522,-450.0,0.00019984,2]
[359866422,1746384632532,-450.0,0.00019984,2]
[359866424,1746384632541,-450.0,0.00019984,2]
[359866426,1746384632550,-450.0,0.00019984,2]
[359866428,1746384632560,-450.0,0.00019984,2]
[359866430,1746384632569,-450.0,0.00019984,2]
[359866432,1746384632579,-450.0,0.00019984,2]
[359866434,1746384632589,-450.0,0.00019984,2]
[359866436,1746384632598,-450.0,0.00019984,2]
[359866438,1746384632608,-450.0,0.00019984,2]
[359866440,1746384632618,-450.0,0.00019984,2]
[359866442,1746384632628,-450.0,0.00019984,2]
[359866444,1746384632637,-450.0,0.00019984,2]
[359866447,1746384632647,-450.0,0.00019984,2]
[359866450,1746384632656,-450.0,0.00019984,2]
[359866453,1746384632666,-450.0,0.00019984,2]
[359866455,1746384632677,-570.70309032,0.00019984,2]
[359866457,1746384632687,-450.0,0.00019984,2]
[359866459,1746384632696,-450.0,0.00019984,2]
[359866461,1746384632708,-450.0,0.00019984,2]
[359866463,1746384632718,-450.0,0.00019984,2]
[359866465,1746384632727,-450.0,0.00019984,2]